[Event "Titled Tuesday Blitz November 22 Late 2022"]
[White "Liu, Kelsey"]
[Black "Marcolino, Daniel Mattos"]
[WhiteFideId "30944481"]
[BlackFideId "2106841"]
[WhiteElo "2295"]
[BlackElo "2083"]
[Result "0-1"]
[Round "06"]
[TimeControl "180+1"]
[Date "2022.11.23"]
[WhiteClock "0:00:02"]
[BlackClock "0:00:52"]

1. e4 {[%clk 0:02:57]}  e5 {[%clk 0:02:59]} 2. Nf3 {[%clk 0:02:57]}  Nc6 {[%clk 0:02:59]} 3. Bb5 {[%clk 0:02:57]}  a6 {[%clk 0:03:00]} 4. Ba4 {[%clk 0:02:56]}  Nf6 {[%clk 0:02:59]} 5. O-O {[%clk 0:02:56]}  Be7 {[%clk 0:03:00]} 6. Qe2 {[%clk 0:02:55]}  b5 {[%clk 0:02:54]} 7. Bb3 {[%clk 0:02:55]}  d6 {[%clk 0:02:54]} 8. c3 {[%clk 0:02:55]}  O-O {[%clk 0:02:53]} 9. Rd1 {[%clk 0:02:54]}  Bb7 {[%clk 0:02:50]} 10. d4 {[%clk 0:02:53]}  exd4 {[%clk 0:02:50]} 11. cxd4 {[%clk 0:02:54]}  Na5 {[%clk 0:02:45]} 12. Bc2 {[%clk 0:02:54]}  Re8 {[%clk 0:02:45]} 13. a3 {[%clk 0:02:45]}  Bf8 {[%clk 0:02:41]} 14. Nc3 {[%clk 0:02:45]}  Qe7 {[%clk 0:02:33]} 15. Bg5 {[%clk 0:02:43]}  h6 {[%clk 0:02:31]} 16. Bxf6 {[%clk 0:01:46]}  Qxf6 {[%clk 0:02:18]} 17. Qd3 {[%clk 0:01:42]}  g6 {[%clk 0:02:11]} 18. b4 {[%clk 0:01:23]}  Nc4 {[%clk 0:02:11]} 19. Re1 {[%clk 0:01:14]}  Rad8 {[%clk 0:02:08]} 20. Bb3 {[%clk 0:01:14]}  c5 {[%clk 0:02:07]} 21. Bxc4 {[%clk 0:01:00]}  bxc4 {[%clk 0:02:07]} 22. Qxc4 {[%clk 0:01:00]}  cxd4 {[%clk 0:01:56]} 23. Qxd4 {[%clk 0:00:28]}  Qxd4 {[%clk 0:01:34]} 24. Nxd4 {[%clk 0:00:29]}  Bg7 {[%clk 0:01:34]} 25. Rad1 {[%clk 0:00:26]}  Rc8 {[%clk 0:01:22]} 26. Na4 {[%clk 0:00:16]}  Rxe4 {[%clk 0:01:16]} 27. Rxe4 {[%clk 0:00:09]}  Bxe4 {[%clk 0:01:17]} 28. f3 {[%clk 0:00:05]}  Bb7 {[%clk 0:01:05]} 29. Kf2 {[%clk 0:00:05]}  Be5 {[%clk 0:01:01]} 30. Ne2 {[%clk 0:00:03]}  Rc2 {[%clk 0:00:57]} 31. Re1 {[%clk 0:00:02]}  Bc6 {[%clk 0:00:51]} 32. Nb6 {[%clk 0:00:02]}  Bd4+ {[%clk 0:00:52]} 0-1


[Site "https://www.chess.com"]

[Event "Titled Tuesday Blitz November 22 Late 2022"]
[White "Lizak, Peter"]
[Black "Oparin, Grigoriy"]
[WhiteFideId "731595"]
[BlackFideId "24125890"]
[WhiteElo "2607"]
[BlackElo "2952"]
[Result "1/2-1/2"]
[Round "06"]
[TimeControl "180+1"]
[Date "2022.11.23"]
[WhiteClock "0:00:10"]
[BlackClock "0:00:28"]

1. d4 {[%clk 0:03:00]}  c6 {[%clk 0:03:00]} 2. e4 {[%clk 0:03:00]}  d5 {[%clk 0:03:01]} 3. Nc3 {[%clk 0:03:00]}  dxe4 {[%clk 0:03:01]} 4. Nxe4 {[%clk 0:03:01]}  Nf6 {[%clk 0:03:02]} 5. Nxf6+ {[%clk 0:03:02]}  exf6 {[%clk 0:03:03]} 6. c3 {[%clk 0:03:02]}  Bd6 {[%clk 0:03:03]} 7. Bd3 {[%clk 0:03:01]}  O-O {[%clk 0:03:04]} 8. Qc2 {[%clk 0:03:00]}  Re8+ {[%clk 0:03:05]} 9. Ne2 {[%clk 0:03:00]}  h5 {[%clk 0:03:05]} 10. O-O {[%clk 0:03:01]}  h4 {[%clk 0:03:04]} 11. h3 {[%clk 0:03:01]}  Nd7 {[%clk 0:03:05]} 12. Bd2 {[%clk 0:02:54]}  Nf8 {[%clk 0:03:05]} 13. Rae1 {[%clk 0:02:54]}  Bd7 {[%clk 0:03:05]} 14. f4 {[%clk 0:02:50]}  Rc8 {[%clk 0:03:04]} 15. f5 {[%clk 0:02:48]}  Nh7 {[%clk 0:02:58]} 16. Bf4 {[%clk 0:02:47]}  Qc7 {[%clk 0:02:56]} 17. Qd2 {[%clk 0:02:45]}  c5 {[%clk 0:02:54]} 18. Bxd6 {[%clk 0:02:38]}  Qxd6 {[%clk 0:02:55]} 19. Qf4 {[%clk 0:02:38]}  Qb6 {[%clk 0:02:55]} 20. dxc5 {[%clk 0:02:25]}  Rxc5 {[%clk 0:02:53]} 21. Nd4 {[%clk 0:02:23]}  Rce5 {[%clk 0:02:53]} 22. Qf2 {[%clk 0:02:00]}  Ng5 {[%clk 0:02:50]} 23. Rxe5 {[%clk 0:01:52]}  fxe5 {[%clk 0:02:51]} 24. Nb3 {[%clk 0:01:52]}  Qf6 {[%clk 0:02:41]} 25. Qe3 {[%clk 0:01:26]}  Bc6 {[%clk 0:02:29]} 26. Nd2 {[%clk 0:01:26]}  Rd8 {[%clk 0:02:24]} 27. Bc4 {[%clk 0:00:52]}  b6 {[%clk 0:02:12]} 28. Bb3 {[%clk 0:00:52]}  Kf8 {[%clk 0:02:06]} 29. Nc4 {[%clk 0:00:52]}  Ne4 {[%clk 0:02:02]} 30. Bc2 {[%clk 0:00:44]}  Ng3 {[%clk 0:02:00]} 31. Re1 {[%clk 0:00:44]}  e4 {[%clk 0:01:53]} 32. Qf4 {[%clk 0:00:38]}  g5 {[%clk 0:01:48]} 33. Qe5 {[%clk 0:00:34]}  Kg7 {[%clk 0:01:45]} 34. Qxf6+ {[%clk 0:00:26]}  Kxf6 {[%clk 0:01:45]} 35. Ne3 {[%clk 0:00:27]}  Rd2 {[%clk 0:01:41]} 36. b4 {[%clk 0:00:25]}  Ke5 {[%clk 0:01:36]} 37. Nc4+ {[%clk 0:00:24]}  Kf4 {[%clk 0:01:33]} 38. Nxd2 {[%clk 0:00:24]}  Kxf5 {[%clk 0:01:30]} 39. a4 {[%clk 0:00:21]}  Ke5 {[%clk 0:01:30]} 40. Nf3+ {[%clk 0:00:19]}  Kf4 {[%clk 0:01:27]} 41. Nd4 {[%clk 0:00:19]}  Bd7 {[%clk 0:01:26]} 42. Ne2+ {[%clk 0:00:19]}  Nxe2+ {[%clk 0:01:26]} 43. Rxe2 {[%clk 0:00:20]}  f5 {[%clk 0:01:27]} 44. c4 {[%clk 0:00:18]}  Ke5 {[%clk 0:01:27]} 45. Rd2 {[%clk 0:00:18]}  Bc6 {[%clk 0:01:24]} 46. b5 {[%clk 0:00:18]}  Be8 {[%clk 0:01:22]} 47. Rd8 {[%clk 0:00:17]}  Bf7 {[%clk 0:01:22]} 48. Rc8 {[%clk 0:00:13]}  Kd4 {[%clk 0:01:22]} 49. Kf2 {[%clk 0:00:12]}  Bxc4 {[%clk 0:01:20]} 50. Rc7 {[%clk 0:00:12]}  e3+ {[%clk 0:01:17]} 51. Ke1 {[%clk 0:00:12]}  f4 {[%clk 0:01:17]} 52. Rxa7 {[%clk 0:00:12]}  Bd5 {[%clk 0:01:17]} 53. Rd7 {[%clk 0:00:12]}  Kc5 {[%clk 0:01:17]} 54. a5 {[%clk 0:00:10]}  Bxg2 {[%clk 0:01:16]} 55. a6 {[%clk 0:00:08]}  f3 {[%clk 0:01:15]} 56. Rf7 {[%clk 0:00:07]}  f2+ {[%clk 0:01:15]} 57. Rxf2 {[%clk 0:00:07]}  exf2+ {[%clk 0:01:16]} 58. Kxf2 {[%clk 0:00:08]}  Bd5 {[%clk 0:00:45]} 59. Bd3 {[%clk 0:00:08]}  Kd6 {[%clk 0:00:22]} 60. Bf1 {[%clk 0:00:08]}  Kc5 {[%clk 0:00:19]} 61. Bg2 {[%clk 0:00:07]}  Kxb5 {[%clk 0:00:18]} 62. a7 {[%clk 0:00:06]}  Ka6 {[%clk 0:00:18]} 63. Bxd5 {[%clk 0:00:03]}  Kxa7 {[%clk 0:00:19]} 64. Kf3 {[%clk 0:00:04]}  Kb8 {[%clk 0:00:19]} 65. Kg4 {[%clk 0:00:04]}  Kc7 {[%clk 0:00:20]} 66. Kxg5 {[%clk 0:00:04]}  Kd6 {[%clk 0:00:21]} 67. Bb3 {[%clk 0:00:03]}  Ke7 {[%clk 0:00:21]} 68. Kxh4 {[%clk 0:00:03]}  Kf6 {[%clk 0:00:22]} 69. Kh5 {[%clk 0:00:03]}  Kg7 {[%clk 0:00:22]} 70. Kg4 {[%clk 0:00:04]}  Kh8 {[%clk 0:00:23]} 71. Kf4 {[%clk 0:00:04]}  Kg7 {[%clk 0:00:24]} 72. Ke5 {[%clk 0:00:05]}  Kh6 {[%clk 0:00:24]} 73. Kd6 {[%clk 0:00:06]}  Kg7 {[%clk 0:00:25]} 74. Kc6 {[%clk 0:00:07]}  Kh8 {[%clk 0:00:26]} 75. Kxb6 {[%clk 0:00:08]}  Kg7 {[%clk 0:00:26]} 76. Kc5 {[%clk 0:00:09]}  Kh8 {[%clk 0:00:27]} 77. h4 {[%clk 0:00:09]}  Kg7 {[%clk 0:00:28]} 78. h5 {[%clk 0:00:10]}  Kh8 {[%clk 0:00:29]} 79. h6 {[%clk 0:00:11]}  Kh7 {[%clk 0:00:28]} 80. Kd6 {[%clk 0:00:10]}  Kxh6 {[%clk 0:00:28]} 1/2-1/2


[Site "https://www.chess.com"]

[Event "Titled Tuesday Blitz November 22 Late 2022"]
[White "Melikyan, Gnel"]
[Black "Pan, Kevin"]
[WhiteFideId "54109990"]
[BlackFideId "30915708"]
[WhiteElo "2138"]
[BlackElo "2233"]
[Result "1/2-1/2"]
[Round "06"]
[TimeControl "180+1"]
[Date "2022.11.23"]
[WhiteClock "0:00:12"]
[BlackClock "0:00:11"]

1. f4 {[%clk 0:02:57]}  d5 {[%clk 0:02:59]} 2. Nf3 {[%clk 0:02:56]}  Nf6 {[%clk 0:03:00]} 3. g3 {[%clk 0:02:55]}  e6 {[%clk 0:03:00]} 4. Bg2 {[%clk 0:02:55]}  c6 {[%clk 0:03:00]} 5. O-O {[%clk 0:02:56]}  Nbd7 {[%clk 0:03:01]} 6. d3 {[%clk 0:02:56]}  b6 {[%clk 0:03:02]} 7. Nc3 {[%clk 0:02:56]}  Bb7 {[%clk 0:03:02]} 8. e4 {[%clk 0:02:57]}  Qc7 {[%clk 0:03:00]} 9. Qe2 {[%clk 0:02:57]}  O-O-O {[%clk 0:02:58]} 10. exd5 {[%clk 0:02:42]}  exd5 {[%clk 0:02:55]} 11. Bd2 {[%clk 0:02:37]}  Bd6 {[%clk 0:02:47]} 12. Rae1 {[%clk 0:02:34]}  Rhe8 {[%clk 0:02:13]} 13. Qf2 {[%clk 0:02:22]}  Ng4 {[%clk 0:02:07]} 14. Rxe8 {[%clk 0:02:20]}  Rxe8 {[%clk 0:02:04]} 15. Re1 {[%clk 0:02:19]}  Qd8 {[%clk 0:01:25]} 16. Rxe8 {[%clk 0:02:15]}  Qxe8 {[%clk 0:01:25]} 17. Qe2 {[%clk 0:02:07]}  Qxe2 {[%clk 0:01:22]} 18. Nxe2 {[%clk 0:02:07]}  f5 {[%clk 0:01:21]} 19. Ng5 {[%clk 0:01:48]}  Ngf6 {[%clk 0:01:06]} 20. Nd4 {[%clk 0:01:31]}  Bc5 {[%clk 0:00:42]} 21. Be3 {[%clk 0:01:29]}  Ng4 {[%clk 0:00:42]} 22. b4 {[%clk 0:01:17]}  Bxb4 {[%clk 0:00:31]} 23. Nxf5 {[%clk 0:00:58]}  g6 {[%clk 0:00:31]} 24. h3 {[%clk 0:00:57]}  Ngf6 {[%clk 0:00:29]} 25. Nd4 {[%clk 0:00:51]}  c5 {[%clk 0:00:27]} 26. Nb5 {[%clk 0:00:49]}  d4 {[%clk 0:00:22]} 27. Nd6+ {[%clk 0:00:40]}  Kc7 {[%clk 0:00:22]} 28. Nb5+ {[%clk 0:00:36]}  Kb8 {[%clk 0:00:20]} 29. Bf2 {[%clk 0:00:27]}  a6 {[%clk 0:00:18]} 30. Nd6 {[%clk 0:00:26]}  Bd5 {[%clk 0:00:18]} 31. Bxd5 {[%clk 0:00:18]}  Nxd5 {[%clk 0:00:19]} 32. Nxh7 {[%clk 0:00:18]}  Nc3 {[%clk 0:00:18]} 33. Nc4 {[%clk 0:00:17]}  Nxa2 {[%clk 0:00:17]} 34. h4 {[%clk 0:00:13]}  Nc3 {[%clk 0:00:17]} 35. f5 {[%clk 0:00:13]}  gxf5 {[%clk 0:00:17]} 36. h5 {[%clk 0:00:13]}  Nd5 {[%clk 0:00:18]} 37. h6 {[%clk 0:00:14]}  N5f6 {[%clk 0:00:18]} 38. Nxf6 {[%clk 0:00:14]}  Nxf6 {[%clk 0:00:19]} 39. Nxb6 {[%clk 0:00:15]}  Bd2 {[%clk 0:00:18]} 40. Nd7+ {[%clk 0:00:13]}  Kc7 {[%clk 0:00:16]} 41. Nxf6 {[%clk 0:00:13]}  Bxh6 {[%clk 0:00:17]} 42. c3 {[%clk 0:00:13]}  dxc3 {[%clk 0:00:17]} 43. Nd5+ {[%clk 0:00:14]}  Kc6 {[%clk 0:00:17]} 44. Nxc3 {[%clk 0:00:14]}  Bg7 {[%clk 0:00:18]} 45. Na4 {[%clk 0:00:13]}  Bf8 {[%clk 0:00:18]} 46. Kf1 {[%clk 0:00:13]}  Kb5 {[%clk 0:00:18]} 47. Nc3+ {[%clk 0:00:14]}  Kb4 {[%clk 0:00:18]} 48. Nd5+ {[%clk 0:00:14]}  Kb3 {[%clk 0:00:18]} 49. Ke2 {[%clk 0:00:15]}  c4 {[%clk 0:00:19]} 50. dxc4 {[%clk 0:00:15]}  Kxc4 {[%clk 0:00:20]} 51. Nb6+ {[%clk 0:00:14]}  Kb5 {[%clk 0:00:19]} 52. Nd7 {[%clk 0:00:15]}  Bd6 {[%clk 0:00:20]} 53. Nf6 {[%clk 0:00:12]}  Be5 {[%clk 0:00:19]} 54. Nd5 {[%clk 0:00:12]}  Kc4 {[%clk 0:00:19]} 55. Ne3+ {[%clk 0:00:12]}  Kb3 {[%clk 0:00:17]} 56. Nxf5 {[%clk 0:00:13]}  a5 {[%clk 0:00:18]} 57. Nd4+ {[%clk 0:00:12]}  Kc4 {[%clk 0:00:16]} 58. Nc6 {[%clk 0:00:13]}  Bc7 {[%clk 0:00:17]} 59. Kd2 {[%clk 0:00:11]}  a4 {[%clk 0:00:17]} 60. Kc2 {[%clk 0:00:11]}  a3 {[%clk 0:00:17]} 61. g4 {[%clk 0:00:11]}  Kd5 {[%clk 0:00:17]} 62. Nb4+ {[%clk 0:00:10]}  Ke4 {[%clk 0:00:18]} 63. g5 {[%clk 0:00:07]}  Kf5 {[%clk 0:00:18]} 64. Bh4 {[%clk 0:00:07]}  Bd8 {[%clk 0:00:17]} 65. g6 {[%clk 0:00:08]}  Bf6 {[%clk 0:00:15]} 66. Nd5 {[%clk 0:00:05]}  Bg7 {[%clk 0:00:11]} 67. Ne7+ {[%clk 0:00:05]}  Ke6 {[%clk 0:00:12]} 68. Kb3 {[%clk 0:00:06]}  Bf8 {[%clk 0:00:09]} 69. Nc6 {[%clk 0:00:02]}  Kf5 {[%clk 0:00:09]} 70. Be7 {[%clk 0:00:03]}  Bg7 {[%clk 0:00:08]} 71. Bxa3 {[%clk 0:00:02]}  Kxg6 {[%clk 0:00:08]} 72. Kc4 {[%clk 0:00:02]}  Kf5 {[%clk 0:00:08]} 73. Kd5 {[%clk 0:00:03]}  Bf6 {[%clk 0:00:08]} 74. Bd6 {[%clk 0:00:04]}  Kg6 {[%clk 0:00:08]} 75. Ke6 {[%clk 0:00:04]}  Bg5 {[%clk 0:00:08]} 76. Ne5+ {[%clk 0:00:04]}  Kh5 {[%clk 0:00:09]} 77. Kf5 {[%clk 0:00:05]}  Bh4 {[%clk 0:00:06]} 78. Ng4 {[%clk 0:00:05]}  Bg5 {[%clk 0:00:06]} 79. Bf8 {[%clk 0:00:04]}  Bh4 {[%clk 0:00:07]} 80. Bg7 {[%clk 0:00:05]}  Bg5 {[%clk 0:00:07]} 81. Nf2 {[%clk 0:00:05]}  Bh4 {[%clk 0:00:08]} 82. Ne4 {[%clk 0:00:06]}  Be7 {[%clk 0:00:06]} 83. Be5 {[%clk 0:00:04]}  Kh6 {[%clk 0:00:06]} 84. Ke6 {[%clk 0:00:03]}  Ba3 {[%clk 0:00:07]} 85. Kf7 {[%clk 0:00:04]}  Kh5 {[%clk 0:00:07]} 86. Nf6+ {[%clk 0:00:03]}  Kg5 {[%clk 0:00:07]} 87. Ke6 {[%clk 0:00:04]}  Kh4 {[%clk 0:00:07]} 88. Nd5 {[%clk 0:00:05]}  Bc1 {[%clk 0:00:07]} 89. Bf6+ {[%clk 0:00:05]}  Kg4 {[%clk 0:00:08]} 90. Bd4 {[%clk 0:00:06]}  Kg3 {[%clk 0:00:07]} 91. Nf6 {[%clk 0:00:07]}  Kf3 {[%clk 0:00:08]} 92. Kf5 {[%clk 0:00:07]}  Bd2 {[%clk 0:00:08]} 93. Ne4 {[%clk 0:00:08]}  Bc1 {[%clk 0:00:09]} 94. Be5 {[%clk 0:00:09]}  Ke2 {[%clk 0:00:09]} 95. Nd6 {[%clk 0:00:09]}  Kd3 {[%clk 0:00:10]} 96. Bf4 {[%clk 0:00:09]}  Ba3 {[%clk 0:00:11]} 97. Nf7 {[%clk 0:00:09]}  Bc5 {[%clk 0:00:11]} 98. Ne5+ {[%clk 0:00:10]}  Kd4 {[%clk 0:00:11]} 99. Nf3+ {[%clk 0:00:10]}  Kd5 {[%clk 0:00:12]} 100. Ng5 {[%clk 0:00:11]}  Bd6 {[%clk 0:00:12]} 101. Nf3 {[%clk 0:00:12]}  Bxf4 {[%clk 0:00:11]} 1/2-1/2


[Site "https://www.chess.com"]

[Event "Titled Tuesday Blitz November 22 Late 2022"]
[White "Mesa Cruz, Juan Carlos"]
[Black "Rios Escobar, Adan"]
[WhiteFideId "6423400"]
[BlackFideId "3403645"]
[WhiteElo "2059"]
[BlackElo "2327"]
[Result "1-0"]
[Round "06"]
[TimeControl "180+1"]
[Date "2022.11.23"]
[WhiteClock "0:00:03"]
[BlackClock "0:00:01"]

1. e4 {[%clk 0:02:57]}  c5 {[%clk 0:02:58]} 2. Nf3 {[%clk 0:02:57]}  d6 {[%clk 0:02:58]} 3. d4 {[%clk 0:02:57]}  cxd4 {[%clk 0:02:59]} 4. Nxd4 {[%clk 0:02:57]}  Nf6 {[%clk 0:02:59]} 5. Nc3 {[%clk 0:02:57]}  a6 {[%clk 0:03:00]} 6. Bg5 {[%clk 0:02:58]}  Nbd7 {[%clk 0:02:58]} 7. f4 {[%clk 0:02:54]}  g6 {[%clk 0:02:55]} 8. Qf3 {[%clk 0:02:42]}  Bg7 {[%clk 0:02:53]} 9. O-O-O {[%clk 0:02:34]}  O-O {[%clk 0:02:25]} 10. h4 {[%clk 0:02:33]}  h6 {[%clk 0:02:19]} 11. Bxf6 {[%clk 0:02:33]}  Nxf6 {[%clk 0:02:20]} 12. f5 {[%clk 0:02:32]}  e5 {[%clk 0:01:53]} 13. Nde2 {[%clk 0:02:20]}  b5 {[%clk 0:01:46]} 14. g4 {[%clk 0:02:18]}  Bb7 {[%clk 0:01:41]} 15. g5 {[%clk 0:02:15]}  Nh5 {[%clk 0:01:32]} 16. Kb1 {[%clk 0:01:57]}  Rc8 {[%clk 0:01:19]} 17. Bh3 {[%clk 0:01:43]}  Rc4 {[%clk 0:01:15]} 18. Bg4 {[%clk 0:01:36]}  Nf4 {[%clk 0:01:11]} 19. f6 {[%clk 0:01:32]}  Bh8 {[%clk 0:00:58]} 20. Nxf4 {[%clk 0:01:30]}  exf4 {[%clk 0:00:30]} 21. Qxf4 {[%clk 0:01:21]}  Rxc3 {[%clk 0:00:20]} 22. bxc3 {[%clk 0:01:18]}  Re8 {[%clk 0:00:16]} 23. Bf3 {[%clk 0:00:37]}  Qa5 {[%clk 0:00:14]} 24. Rd3 {[%clk 0:00:30]}  b4 {[%clk 0:00:13]} 25. cxb4 {[%clk 0:00:29]}  Qb5 {[%clk 0:00:09]} 26. h5 {[%clk 0:00:12]}  hxg5 {[%clk 0:00:09]} 27. Qxd6 {[%clk 0:00:07]}  a5 {[%clk 0:00:05]} 28. hxg6 {[%clk 0:00:06]}  fxg6 {[%clk 0:00:02]} 29. f7+ {[%clk 0:00:03]}  Kxf7 {[%clk 0:00:02]} 30. Qd7+ {[%clk 0:00:03]}  Qxd7 {[%clk 0:00:01]} 31. Rxd7+ {[%clk 0:00:03]} 1-0


[Site "https://www.chess.com"]

[Event "Titled Tuesday Blitz November 22 Late 2022"]
[White "Piesik, Piotr"]
[Black "Manelyuk, Daniil"]
[WhiteFideId "1136194"]
[BlackFideId "44173920"]
[WhiteElo "2695"]
[BlackElo "2561"]
[Result "0-1"]
[Round "06"]
[TimeControl "180+1"]
[Date "2022.11.23"]
[WhiteClock "0:00:14"]
[BlackClock "0:00:10"]

1. Nf3 {[%clk 0:02:56]}  c5 {[%clk 0:02:57]} 2. e4 {[%clk 0:02:55]}  d6 {[%clk 0:02:53]} 3. Bb5+ {[%clk 0:02:54]}  Bd7 {[%clk 0:02:51]} 4. Bxd7+ {[%clk 0:02:54]}  Qxd7 {[%clk 0:02:52]} 5. c4 {[%clk 0:02:18]}  Nc6 {[%clk 0:02:49]} 6. Nc3 {[%clk 0:02:16]}  g6 {[%clk 0:02:49]} 7. d4 {[%clk 0:02:14]}  cxd4 {[%clk 0:02:49]} 8. Nxd4 {[%clk 0:02:15]}  Bg7 {[%clk 0:02:49]} 9. Be3 {[%clk 0:02:12]}  Nf6 {[%clk 0:02:48]} 10. f3 {[%clk 0:02:12]}  O-O {[%clk 0:02:48]} 11. O-O {[%clk 0:02:10]}  Rfc8 {[%clk 0:02:47]} 12. b3 {[%clk 0:02:10]}  Rab8 {[%clk 0:02:43]} 13. Rc1 {[%clk 0:02:09]}  a6 {[%clk 0:02:42]} 14. Nce2 {[%clk 0:01:55]}  b5 {[%clk 0:02:33]} 15. c5 {[%clk 0:01:55]}  dxc5 {[%clk 0:02:31]} 16. Rxc5 {[%clk 0:01:52]}  Nxd4 {[%clk 0:02:30]} 17. Bxd4 {[%clk 0:01:51]}  Rd8 {[%clk 0:02:17]} 18. Qa1 {[%clk 0:01:48]}  Nxe4 {[%clk 0:02:06]} 19. fxe4 {[%clk 0:01:28]}  Bxd4+ {[%clk 0:02:05]} 20. Nxd4 {[%clk 0:01:28]}  Qxd4+ {[%clk 0:02:06]} 21. Qxd4 {[%clk 0:01:28]}  Rxd4 {[%clk 0:02:06]} 22. e5 {[%clk 0:01:24]}  Re4 {[%clk 0:02:00]} 23. Rd1 {[%clk 0:01:21]}  Rb6 {[%clk 0:01:55]} 24. Kf2 {[%clk 0:01:15]}  Re6 {[%clk 0:01:53]} 25. Rdd5 {[%clk 0:01:15]}  Kg7 {[%clk 0:01:46]} 26. Kf3 {[%clk 0:01:12]}  Re1 {[%clk 0:01:45]} 27. Kf2 {[%clk 0:01:13]}  Ra1 {[%clk 0:01:42]} 28. Rd2 {[%clk 0:01:12]}  b4 {[%clk 0:01:38]} 29. Re2 {[%clk 0:01:10]}  Rd1 {[%clk 0:01:35]} 30. g4 {[%clk 0:01:04]}  Rd4 {[%clk 0:01:32]} 31. Kf3 {[%clk 0:01:02]}  g5 {[%clk 0:01:26]} 32. Re4 {[%clk 0:00:45]}  Rxe4 {[%clk 0:00:56]} 33. Kxe4 {[%clk 0:00:46]}  f6 {[%clk 0:00:56]} 34. Kf5 {[%clk 0:00:46]}  Rxe5+ {[%clk 0:00:54]} 35. Rxe5 {[%clk 0:00:46]}  fxe5 {[%clk 0:00:54]} 36. Kxg5 {[%clk 0:00:47]}  e6 {[%clk 0:00:54]} 37. Kh4 {[%clk 0:00:47]}  e4 {[%clk 0:00:12]} 38. Kg3 {[%clk 0:00:47]}  Kf6 {[%clk 0:00:12]} 39. Kf4 {[%clk 0:00:46]}  e3 {[%clk 0:00:11]} 40. Kxe3 {[%clk 0:00:45]}  Kg5 {[%clk 0:00:11]} 41. Kf3 {[%clk 0:00:42]}  Kh4 {[%clk 0:00:11]} 42. Kf4 {[%clk 0:00:20]}  h6 {[%clk 0:00:10]} 43. Kf3 {[%clk 0:00:15]}  e5 {[%clk 0:00:05]} 44. Ke4 {[%clk 0:00:13]}  Kxg4 {[%clk 0:00:05]} 45. Kxe5 {[%clk 0:00:13]}  Kh3 {[%clk 0:00:05]} 46. Kf5 {[%clk 0:00:13]}  Kxh2 {[%clk 0:00:06]} 47. Kg6 {[%clk 0:00:13]}  Kg3 {[%clk 0:00:06]} 48. Kxh6 {[%clk 0:00:14]}  Kf2 {[%clk 0:00:07]} 49. Kg5 {[%clk 0:00:14]}  Ke2 {[%clk 0:00:07]} 50. Kf4 {[%clk 0:00:14]}  Kd2 {[%clk 0:00:08]} 51. Ke4 {[%clk 0:00:15]}  Kc2 {[%clk 0:00:09]} 52. Kd4 {[%clk 0:00:13]}  Kb2 {[%clk 0:00:09]} 53. Kc4 {[%clk 0:00:13]}  a5 {[%clk 0:00:09]} 54. Kb5 {[%clk 0:00:13]}  Kxa2 {[%clk 0:00:10]} 55. Ka4 {[%clk 0:00:13]}  Kb2 {[%clk 0:00:10]} 56. Kxa5 {[%clk 0:00:14]}  Kxb3 {[%clk 0:00:10]} 0-1


[Site "https://www.chess.com"]

[Event "Titled Tuesday Blitz November 22 Late 2022"]
[White "Poliakova, Varvara"]
[Black "Rosenberg, Evan S"]
[WhiteFideId "13518313"]
[BlackFideId "2019299"]
[WhiteElo "2099"]
[BlackElo "2390"]
[Result "1-0"]
[Round "06"]
[TimeControl "180+1"]
[Date "2022.11.23"]
[WhiteClock "0:02:03"]
[BlackClock "0:00:06"]

1. f4 {[%clk 0:03:00]}  g6 {[%clk 0:02:59]} 2. e4 {[%clk 0:03:00]}  d5 {[%clk 0:02:53]} 3. e5 {[%clk 0:03:00]}  c5 {[%clk 0:02:49]} 4. g3 {[%clk 0:03:00]}  h5 {[%clk 0:02:48]} 5. Bg2 {[%clk 0:02:57]}  h4 {[%clk 0:02:48]} 6. g4 {[%clk 0:02:55]}  Nc6 {[%clk 0:02:42]} 7. h3 {[%clk 0:02:55]}  g5 {[%clk 0:02:41]} 8. d3 {[%clk 0:02:51]}  gxf4 {[%clk 0:02:37]} 9. Bxf4 {[%clk 0:02:52]}  Bh6 {[%clk 0:02:27]} 10. Bxh6 {[%clk 0:02:51]}  Nxh6 {[%clk 0:02:26]} 11. Nf3 {[%clk 0:02:50]}  e6 {[%clk 0:02:20]} 12. O-O {[%clk 0:02:50]}  Bd7 {[%clk 0:02:14]} 13. Nc3 {[%clk 0:02:47]}  a6 {[%clk 0:02:11]} 14. Qd2 {[%clk 0:02:43]}  Qe7 {[%clk 0:02:07]} 15. Ne2 {[%clk 0:02:43]}  O-O-O {[%clk 0:02:06]} 16. d4 {[%clk 0:02:37]}  cxd4 {[%clk 0:02:04]} 17. Nexd4 {[%clk 0:02:38]}  Rdg8 {[%clk 0:01:59]} 18. Nxc6 {[%clk 0:02:34]}  Bxc6 {[%clk 0:01:59]} 19. Nd4 {[%clk 0:02:33]}  Nxg4 {[%clk 0:01:47]} 20. hxg4 {[%clk 0:02:27]}  Rxg4 {[%clk 0:01:47]} 21. Nxc6 {[%clk 0:02:27]}  bxc6 {[%clk 0:01:37]} 22. Qe2 {[%clk 0:02:25]}  Qa7+ {[%clk 0:01:34]} 23. Rf2 {[%clk 0:02:21]}  Rhg8 {[%clk 0:01:31]} 24. Kh1 {[%clk 0:02:19]}  Rg3 {[%clk 0:01:21]} 25. Raf1 {[%clk 0:02:16]}  h3 {[%clk 0:01:21]} 26. Bf3 {[%clk 0:02:14]}  h2 {[%clk 0:01:14]} 27. Rg2 {[%clk 0:02:05]}  Kb8 {[%clk 0:00:15]} 28. Rxg3 {[%clk 0:02:05]}  Rxg3 {[%clk 0:00:15]} 29. Qxh2 {[%clk 0:02:05]}  Rg8 {[%clk 0:00:11]} 30. Rg1 {[%clk 0:02:05]}  Rxg1+ {[%clk 0:00:10]} 31. Qxg1 {[%clk 0:02:06]}  Qb7 {[%clk 0:00:08]} 32. b3 {[%clk 0:02:04]}  c5 {[%clk 0:00:06]} 33. Qxc5 {[%clk 0:02:03]} 1-0


[Site "https://www.chess.com"]